bitfinex/quotes_SOLUSD_20241102
["timestamp","ask_amount","ask_price","bid_price","bid_amount"]
[1730590667232,17.19774377,165.43,165.36,11.15294377]
[1730590667554,17.19774377,165.43,165.33,21.1696]
[1730590667555,8.06124086,165.42,165.37,11.15294377]
[1730590667738,8.06124086,165.41,165.37,11.15294377]
[1730590667939,4.47975118,165.4,165.37,11.15294377]
[1730590668154,11.15294377,165.44,165.38,11.15294377]
[1730590668358,8.06182323,165.43,165.38,11.15294377]
[1730590668555,8.06182323,165.42,165.39,21.162]
[1730590668735,4.48008479,165.41,165.39,21.162]
[1730590668933,11.15294377,165.43,165.39,21.162]
[1730590668934,4.48008479,165.4,165.39,21.162]
[1730590669334,4.48021258,165.4,165.39,21.162]
[1730590669650,4.48021258,165.4,165.39,15.1157]
[1730590669956,11.15294377,165.42,165.39,15.1157]
[1730590670141,4.48039523,165.41,165.39,15.1157]
[1730590670343,11.15294377,165.42,165.39,15.1157]
[1730590670956,4.48021813,165.41,165.39,15.1157]
[1730590671158,4.47999186,165.4,165.39,15.1157]
[1730590673245,11.15294377,165.43,165.39,15.1157]
[1730590673448,8.06232906,165.42,165.39,15.1157]
[1730590673753,4.47977213,165.41,165.39,15.1157]
[1730590673958,11.15294377,165.43,165.39,15.1157]
[1730590674288,8.06269553,165.42,165.39,15.1157]
[1730590674445,4.47997148,165.41,165.39,15.1157]
[1730590674631,11.15294377,165.43,165.39,15.1157]
[1730590674836,8.06269363,165.42,165.39,15.1157]
[1730590675150,4.47984317,165.41,165.39,15.1157]
[1730590675347,11.15294377,165.43,165.39,15.1157]
[1730590675550,8.06263073,165.42,165.39,15.1157]
[1730590675756,4.47966798,165.41,165.39,15.1157]
[1730590675956,11.15294377,165.43,165.39,15.1157]
[1730590676257,8.06262552,165.42,165.39,15.1157]
[1730590676556,4.47967296,165.41,165.39,15.1157]
[1730590676766,11.15294377,165.43,165.39,15.1157]
[1730590677054,8.06262526,165.42,165.39,15.1157]
[1730590677252,4.47945821,165.41,165.39,15.1157]
[1730590677454,6.0441,165.45,165.39,26.26864377]
[1730590677455,11.15294377,165.45,165.39,26.26864377]
[1730590677647,8.06306514,165.44,165.42,11.15294377]
[1730590677848,4.48005157,165.43,165.42,11.15294377]
[1730590678056,11.15294377,165.48,165.42,11.15294377]
[1730590678267,19.21718842,165.47,165.41,11.15294377]
[1730590678459,8.06424465,165.46,165.41,11.15294377]
[1730590678764,8.06424465,165.45,165.41,11.15294377]
[1730590679070,4.48003174,165.44,165.41,11.15294377]
[1730590679371,11.15294377,165.47,165.42,21.1582]
[1730590679555,8.06337106,165.46,165.42,21.1582]
[1730590679743,8.06337106,165.45,165.42,21.1582]
[1730590679946,4.47934232,165.44,165.42,21.1582]
[1730590680167,11.15294377,165.51,165.43,11.15294377]
[1730590680463,8.0643972,165.5,165.45,11.15294377]
[1730590680667,8.0643972,165.49,165.45,11.15294377]
[1730590680847,8.0643972,165.48,165.45,11.15294377]
[1730590681046,8.0643972,165.47,165.45,11.15294377]
[1730590681251,11.15294377,165.51,165.46,6.0437]
[1730590681449,4.47990868,165.5,165.46,6.0437]
[1730590681674,4.47990868,165.49,165.46,6.0437]
[1730590681853,4.47990868,165.48,165.46,6.0437]
[1730590682169,4.47990868,165.47,165.46,6.0437]
[1730590682349,4.47990868,165.47,165.46,21.153]
[1730590683358,4.47990868,165.47,165.46,32.30594377]
[1730590684251,4.47959979,165.47,165.46,32.30594377]
[1730590684462,8.06598087,165.47,165.46,32.30594377]
[1730590684651,4.47959979,165.47,165.46,32.30594377]
[1730590685266,17.19494377,165.51,165.46,21.153]
[1730590685569,8.05815377,165.5,165.48,11.15294377]
[1730590685873,8.05815377,165.49,165.47,11.15294377]
[1730590686071,4.47665474,165.48,165.47,17.19624377]
[1730590686258,17.19424377,165.53,165.47,32.30464377]
[1730590686458,8.05426301,165.52,165.47,32.30464377]
[1730590686667,8.05426301,165.51,165.47,32.30464377]
[1730590686870,8.05426301,165.5,165.47,32.30464377]
[1730590687049,4.47509674,165.49,165.47,32.30464377]
[1730590687245,17.19424377,165.53,165.47,32.30464377]
[1730590687452,8.05041638,165.52,165.47,32.30464377]
[1730590687668,17.19424377,165.53,165.47,32.30464377]
[1730590687669,8.05041638,165.51,165.47,32.30464377]
[1730590687966,8.05041638,165.5,165.47,32.30464377]
[1730590688149,4.47342182,165.49,165.47,32.30464377]
[1730590688350,17.19384377,165.54,165.48,11.15294377]
[1730590688572,8.04753521,165.53,165.48,11.15294377]
[1730590688773,8.04753521,165.52,165.48,11.15294377]
[1730590688973,8.04753521,165.51,165.48,11.15294377]
[1730590689294,17.19384377,165.54,165.48,11.15294377]
[1730590689295,4.47221147,165.5,165.48,11.15294377]
[1730590689472,17.19384377,165.54,165.48,17.19564377]
[1730590689681,8.04466395,165.53,165.48,17.19564377]
[1730590689976,8.04466395,165.52,165.48,17.19564377]
[1730590690277,4.47094102,165.51,165.48,17.19564377]
[1730590690465,4.47094102,165.5,165.48,32.30314377]
[1730590690671,17.19384377,165.54,165.48,32.30314377]
[1730590690855,8.04185525,165.53,165.48,32.30314377]
[1730590691175,8.04185525,165.52,165.48,32.30314377]
[1730590691380,17.19384377,165.54,165.48,32.30314377]
[1730590691587,8.03931998,165.53,165.48,32.30314377]
[1730590691763,4.46829479,165.52,165.48,32.30314377]
[1730590691959,17.19384377,165.54,165.48,32.30314377]
[1730590692165,8.03914617,165.53,165.48,32.30314377]
[1730590692479,4.46819873,165.52,165.48,32.30314377]
[1730590692779,4.46819873,165.51,165.48,32.30314377]
[1730590693081,6.0412,165.53,165.48,32.30314377]
[1730590693258,4.4665227,165.52,165.48,32.30314377]
[1730590693465,6.0412,165.53,165.48,32.30314377]
[1730590693661,4.46543577,165.52,165.48,32.30314377]
[1730590693862,6.0412,165.53,165.48,32.30314377]
[1730590694063,4.46540576,165.52,165.48,15.1075]
[1730590694269,11.15294377,165.54,165.48,15.1075]
[1730590694475,15.61727496,165.53,165.48,15.1075]
[1730590694668,4.46433119,165.52,165.48,15.1075]
[1730590694868,11.15294377,165.53,165.48,15.1075]
[1730590695072,4.46433574,165.52,165.48,15.1075]
[1730590695264,17.19384377,165.54,165.48,26.26044377]
[1730590695472,15.61611196,165.53,165.48,21.1505]
[1730590695679,4.46316819,165.52,165.48,21.1505]
[1730590696257,11.15294377,165.53,165.48,21.1505]
[1730590697679,17.19414377,165.53,165.48,21.1505]
[1730590697862,4.46086819,165.52,165.48,21.1505]
[1730590698078,17.19414377,165.53,165.48,21.1505]
[1730590698271,15.61321465,165.52,165.48,21.1505]
[1730590698475,11.15294377,165.52,165.48,15.1075]
[1730590699185,15.61233606,165.51,165.48,15.1075]
[1730590699387,11.15294377,165.51,165.48,15.1075]
[1730590700986,11.15294377,165.51,165.47,6.0431]
[1730590701291,11.15294377,165.5,165.47,6.0431]
[1730590701972,11.15294377,165.5,165.46,6.0437]
[1730590702278,11.15294377,165.5,165.45,42.74714377]
[1730590702279,15.61021804,165.49,165.45,21.1539]
[1730590702481,11.15294377,165.49,165.45,21.1539]
[1730590703482,11.15294377,165.5,165.45,21.1539]
[1730590703784,4.45730316,165.49,165.45,32.30684377]
[1730590703981,11.15294377,165.5,165.45,32.30684377]
[1730590704764,11.15294377,165.51,165.45,32.30684377]
[1730590704975,8.02633717,165.5,165.46,11.15294377]
[1730590705177,11.15294377,165.51,165.46,11.15294377]
[1730590705376,3.57017268,165.5,165.46,11.15294377]
[1730590705569,4.45757527,165.5,165.46,11.15294377]
[1730590705768,11.15294377,165.51,165.46,11.15294377]
[1730590705972,8.02778076,165.5,165.47,6.0433]
[1730590706165,17.19474377,165.52,165.47,6.0433]
[1730590706371,8.02864995,165.51,165.47,6.0433]
[1730590706588,3.57099947,165.5,165.47,6.0433]
[1730590706794,17.19474377,165.52,165.47,6.0433]
[1730590706971,8.02904978,165.51,165.47,6.0433]
[1730590707174,3.57128231,165.5,165.47,6.0433]
[1730590707380,17.19474377,165.52,165.47,6.0433]
[1730590707583,8.03018202,165.51,165.47,6.0433]
[1730590707890,3.57241469,165.5,165.47,6.0433]
[1730590708091,17.19474377,165.52,165.47,6.0433]
[1730590708387,8.03116888,165.51,165.47,6.0433]
[1730590708683,3.57358359,165.5,165.47,6.0433]
[1730590708870,17.19474377,165.52,165.47,6.0433]
[1730590709071,8.03157588,165.51,165.47,6.0433]
[1730590709389,3.57385884,165.5,165.47,6.0433]
[1730590709696,3.57385884,165.49,165.47,6.0433]
[1730590709885,17.19474377,165.52,165.47,6.0433]
[1730590710073,8.03364947,165.51,165.47,6.0433]
[1730590710281,8.03364947,165.5,165.47,6.0433]
[1730590710588,3.57548097,165.49,165.47,6.0433]
[1730590710768,11.15294377,165.51,165.47,6.0433]
[1730590710968,3.57727596,165.5,165.47,6.0433]
[1730590711169,3.57727596,165.49,165.47,6.0433]
[1730590711365,6.0419,165.51,165.47,6.0433]
[1730590711586,3.57942453,165.5,165.47,6.0433]
[1730590711780,3.57942453,165.49,165.47,6.0433]
[1730590711980,6.0419,165.51,165.47,6.0433]
[1730590712178,3.57948109,165.5,165.47,6.0433]
[1730590712380,3.57948109,165.49,165.47,6.0433]
[1730590712593,3.57948109,165.48,165.47,6.0433]
[1730590712790,3.57948109,165.5,165.47,6.0433]
[1730590712982,3.57948109,165.49,165.47,6.0433]
[1730590713186,3.57948109,165.48,165.47,6.0433]
[1730590713378,3.57948109,165.5,165.47,6.0433]
[1730590713579,3.57948109,165.49,165.47,6.0433]
[1730590713899,3.57948109,165.48,165.47,6.0433]
[1730590714193,6.0419,165.51,165.47,6.0433]
[1730590714194,3.57948109,165.5,165.47,6.0433]
[1730590714392,3.57948109,165.48,165.47,17.19624377]
[1730590714787,3.57948109,165.49,165.47,17.19624377]
[1730590714980,3.57948109,165.48,165.47,32.30464377]
[1730590715384,17.19434377,165.53,165.47,32.30464377]
[1730590715583,8.04841905,165.52,165.47,32.30464377]
[1730590715792,3.58542048,165.51,165.47,32.30464377]
[1730590715985,3.58542048,165.5,165.47,32.30464377]
[1730590716299,3.58542048,165.49,165.47,32.30464377]
[1730590716598,3.58542048,165.48,165.47,32.30464377]
[1730590716787,3.58542048,165.52,165.47,32.30464377]
[1730590716990,8.04907875,165.51,165.47,32.30464377]
[1730590717301,3.58542048,165.5,165.47,32.30464377]
[1730590717498,3.58542048,165.49,165.47,32.30464377]
[1730590717704,6.0416,165.52,165.47,32.30464377]
[1730590717880,3.58670204,165.48,165.47,32.30464377]
[1730590718802,3.58670204,165.48,165.47,21.1517]
[1730590719104,3.58670204,165.48,165.46,11.15294377]
[1730590719324,3.58670204,165.47,165.46,11.15294377]
[1730590719988,3.58670204,165.47,165.46,17.19664377]
[1730590720302,11.15294377,165.54,165.46,77.61564377]
[1730590720479,8.05886467,165.53,165.49,11.15294377]
[1730590720680,8.05886467,165.52,165.49,11.15294377]
[1730590720903,3.59049009,165.51,165.49,11.15294377]
[1730590721085,3.59049009,165.5,165.49,11.15294377]
[1730590721395,3.59173808,165.5,165.49,32.30154377]
[1730590722696,3.59173808,165.5,165.49,15.106]
[1730590723895,3.59173808,165.5,165.49,21.1486]
[1730590724095,8.06607965,165.5,165.49,21.1486]
[1730590726089,8.06607965,165.5,165.49,15.106]
[1730590726709,8.07096547,165.5,165.49,15.106]
[1730590728608,17.19394377,165.54,165.49,15.106]
[1730590728791,3.5953322,165.5,165.49,15.106]
[1730590729106,8.07723934,165.5,165.49,15.106]
[1730590735316,8.07723934,165.5,165.47,6.0433]
[1730590735488,8.07723934,165.49,165.47,6.0433]
[1730590735689,8.07723934,165.48,165.47,6.0433]
[1730590736288,8.07723934,165.48,165.47,17.19624377]
[1730590739285,4.48190714,165.48,165.47,17.19624377]
[1730590739489,8.07643095,165.48,165.47,17.19624377]
[1730590741821,3.59452381,165.48,165.47,17.19624377]
[1730590742108,8.08843736,165.48,165.47,32.30464377]
[1730590742310,4.4938704,165.48,165.47,32.30464377]
[1730590742509,20.0,165.55,165.47,32.30464377]
[1730590742714,8.08860787,165.54,165.5,11.15294377]
[1730590743014,8.08860787,165.53,165.49,11.15294377]
[1730590743219,8.08860787,165.52,165.49,11.15294377]
[1730590743513,8.08860787,165.51,165.49,11.15294377]
[1730590743713,8.08860787,165.5,165.49,11.15294377]
[1730590744295,8.08860787,165.5,165.47,26.26134377]
[1730590744494,8.08860787,165.49,165.47,26.26134377]
[1730590744715,4.49402046,165.48,165.47,26.26134377]
[1730590745015,8.08649199,165.48,165.47,21.1517]
[1730590745517,6.0416,165.52,165.47,21.1517]
[1730590745726,3.59236754,165.48,165.47,21.1517]
[1730590746019,8.08418831,165.48,165.47,21.1517]
[1730590746599,8.08418831,165.48,165.47,11.15294377]
[1730590747001,4.49181792,165.48,165.47,11.15294377]
[1730590747230,8.08404096,165.48,165.47,11.15294377]
[1730590748221,8.08404096,165.48,165.47,17.19624377]
[1730590748406,4.49181792,165.48,165.47,17.19624377]
[1730590752632,6.0412,165.53,165.47,17.19624377]
[1730590752916,8.083587,165.52,165.47,32.30464377]
[1730590753117,8.083587,165.51,165.47,32.30464377]
[1730590753323,8.083587,165.5,165.47,32.30464377]
[1730590753522,8.083587,165.49,165.47,32.30464377]
[1730590753741,4.49056058,165.48,165.47,32.30464377]
[1730590755422,8.08413264,165.48,165.47,32.30464377]
[1730590756322,3.59357206,165.48,165.47,32.30464377]
[1730590756526,4.4897631,165.48,165.47,32.30464377]
[1730590757320,8.08380155,165.48,165.47,32.30464377]
[1730590757709,4.4897631,165.48,165.47,32.30464377]
[1730590758506,6.0412,165.53,165.47,32.30464377]
[1730590758708,8.08411675,165.52,165.48,11.15294377]
[1730590759009,8.08411675,165.51,165.48,11.15294377]
[1730590759209,8.08411675,165.5,165.48,11.15294377]
[1730590759409,8.08411675,165.49,165.48,11.15294377]
[1730590759821,8.08411675,165.49,165.48,17.19594377]
[1730590760126,4.49109403,165.49,165.48,17.19594377]
[1730590760428,8.08680136,165.49,165.48,17.19594377]
[1730590761311,8.08680136,165.49,165.47,26.26134377]
[1730590761518,8.08680136,165.48,165.47,26.26134377]
[1730590762424,8.08680136,165.48,165.47,32.30464377]
[1730590767116,8.0887747,165.48,165.47,32.30464377]
[1730590767510,3.59570733,165.48,165.47,32.30464377]
[1730590767715,8.08887916,165.48,165.47,32.30464377]
[1730590767910,8.09017826,165.48,165.47,32.30464377]
[1730590769812,4.49317183,165.48,165.47,32.30464377]
[1730590770033,8.09019132,165.48,165.47,32.30464377]
[1730590770328,8.0901554,165.48,165.47,32.30464377]
[1730590770531,4.49317183,165.48,165.47,32.30464377]
[1730590770929,8.0895851,165.48,165.47,32.30464377]
[1730590771129,8.0895851,165.48,165.47,21.1517]
[1730590774036,8.0895851,165.48,165.44,26.26374377]
[1730590774337,3.59641327,165.47,165.45,6.044]
[1730590774518,8.09199968,165.47,165.45,6.044]
[1730590774720,8.09199968,165.46,165.45,6.044]
[1730590775635,8.09199968,165.46,165.44,15.1108]
[1730590775828,8.09199968,165.45,165.44,15.1108]
[1730590777744,4.49357331,165.45,165.44,15.1108]
[1730590778344,4.49360572,165.45,165.44,15.1108]
[1730590779129,4.49360572,165.45,165.44,21.1552]
[1730590784950,4.490843,165.45,165.44,21.1552]
[1730590786834,4.490843,165.45,165.42,11.15294377]
[1730590787035,4.490843,165.44,165.42,11.15294377]
[1730590787236,11.15294377,165.48,165.42,11.15294377]
[1730590787440,4.48977294,165.47,165.42,11.15294377]
[1730590787645,4.48977294,165.46,165.42,11.15294377]
[1730590787951,4.48977294,165.45,165.42,11.15294377]
[1730590788145,4.48977294,165.44,165.43,6.0448]
[1730590791353,11.15294377,165.48,165.43,21.1569]
[1730590791543,4.48867071,165.47,165.43,21.1569]
[1730590791748,11.15294377,165.48,165.43,21.1569]
[1730590791949,4.48866716,165.46,165.43,21.1569]
[1730590792251,4.48866716,165.45,165.43,32.30984377]
[1730590792554,11.15294377,165.49,165.43,32.30984377]
[1730590792861,4.48838683,165.48,165.43,32.30984377]
[1730590793036,4.48838683,165.47,165.43,32.30984377]
[1730590793235,4.48838683,165.46,165.43,32.30984377]
[1730590793560,4.48838683,165.45,165.43,32.30984377]
[1730590793734,11.15294377,165.49,165.43,32.30984377]
[1730590793735,17.19564377,165.49,165.43,32.30984377]
[1730590794055,4.48814746,165.48,165.43,32.30984377]
[1730590794259,4.48814746,165.47,165.43,32.30984377]
[1730590794433,4.48814746,165.46,165.43,32.30984377]
[1730590794629,4.48814746,165.45,165.43,32.30984377]
[1730590794829,17.19564377,165.49,165.43,32.30984377]
[1730590795136,15.64083438,165.48,165.42,11.15294377]
[1730590795338,4.48764179,165.47,165.42,11.15294377]
[1730590795633,11.15294377,165.48,165.42,11.15294377]
[1730590795634,4.48764179,165.46,165.42,11.15294377]
[1730590795839,4.48764179,165.45,165.42,11.15294377]
[1730590796040,11.15294377,165.48,165.43,21.1569]
[1730590796247,4.48760063,165.47,165.43,21.1569]
[1730590796547,4.48760063,165.46,165.43,21.1569]
[1730590796746,4.48760063,165.45,165.43,21.1569]
[1730590796946,11.15294377,165.48,165.43,21.1569]
[1730590797146,4.48748546,165.47,165.43,21.1569]
[1730590797456,4.48748546,165.46,165.43,21.1569]
[1730590797638,4.48748546,165.45,165.43,21.1569]
[1730590797963,11.15294377,165.48,165.43,21.1569]
[1730590798266,4.48732151,165.47,165.43,21.1569]
[1730590798451,4.48732151,165.46,165.43,21.1569]
[1730590798654,4.48732151,165.45,165.43,21.1569]
[1730590798859,11.15294377,165.48,165.43,21.1569]
[1730590799050,4.48711402,165.47,165.43,21.1569]
[1730590799372,4.48711402,165.46,165.43,21.1569]
[1730590799662,4.48711402,165.45,165.43,21.1569]
[1730590799843,11.15294377,165.48,165.43,21.1569]
[1730590800171,4.48704008,165.47,165.43,21.1569]
[1730590800463,4.48704008,165.46,165.43,21.1569]
[1730590800655,11.15294377,165.48,165.43,21.1569]
[1730590800962,4.4871686,165.47,165.43,21.1569]
[1730590801157,15.64011237,165.46,165.4,11.15294377]
[1730590801365,15.63982102,165.45,165.4,11.15294377]
[1730590801540,11.15294377,165.45,165.4,11.15294377]
[1730590802760,11.15294377,165.45,165.39,26.26804377]
[1730590802975,4.48649304,165.44,165.39,26.26804377]
[1730590803143,11.15294377,165.45,165.39,26.26804377]
[1730590803342,4.48688531,165.44,165.39,26.26804377]
[1730590803645,11.15294377,165.45,165.39,26.26804377]
[1730590803842,4.48689791,165.44,165.39,26.26804377]
[1730590804056,11.15294377,165.45,165.39,32.31434377]
[1730590804259,4.48711123,165.44,165.39,32.31434377]
[1730590804459,11.15294377,165.45,165.39,32.31434377]
[1730590804638,4.48711123,165.44,165.39,32.31434377]
[1730590804839,4.48666191,165.43,165.39,21.1614]
[1730590805045,4.48666191,165.42,165.39,21.1614]
[1730590805246,11.15294377,165.44,165.39,21.1614]
[1730590805459,4.4859115,165.43,165.39,21.1614]
[1730590805770,4.4859115,165.42,165.39,21.1614]
[1730590805957,11.15294377,165.44,165.39,21.1614]
[1730590806259,4.48581378,165.43,165.39,21.1614]
[1730590806461,4.48581378,165.42,165.39,21.1614]
[1730590806656,11.15294377,165.44,165.39,21.1614]
[1730590806846,4.48508748,165.43,165.39,21.1614]
[1730590807042,4.48508748,165.42,165.39,21.1614]
[1730590807362,11.15294377,165.43,165.39,21.1614]
[1730590807564,4.4844149,165.42,165.39,21.1614]
[1730590807865,11.15294377,165.43,165.39,21.1614]
[1730590808058,4.48452692,165.42,165.39,21.1614]
[1730590808365,11.15294377,165.43,165.39,21.1614]
[1730590808551,4.48370857,165.42,165.39,21.1614]
[1730590808753,11.15294377,165.43,165.39,21.1614]
[1730590808948,4.48369571,165.42,165.39,21.1614]
[1730590809143,11.15294377,165.43,165.39,21.1614]
[1730590809347,4.48358087,165.42,165.39,21.1614]
[1730590809547,11.15294377,165.44,165.39,21.1614]
[1730590809766,4.48368809,165.43,165.39,21.1614]
[1730590809950,4.48368809,165.42,165.39,21.1614]
[1730590810148,11.15294377,165.44,165.39,21.1614]
[1730590810345,15.63625692,165.43,165.39,21.1614]
[1730590810563,4.48331315,165.42,165.39,21.1614]
[1730590810868,11.15294377,165.44,165.39,32.31434377]
[1730590811052,4.48316047,165.43,165.39,32.31434377]
[1730590811255,4.48316047,165.42,165.39,32.31434377]
[1730590811562,11.15294377,165.44,165.39,32.31434377]
[1730590811957,4.48273152,165.43,165.39,32.31434377]
[1730590812150,4.48273152,165.42,165.39,32.31434377]
[1730590812463,11.15294377,165.44,165.39,32.31434377]
[1730590812666,4.48238072,165.43,165.39,32.31434377]
[1730590812853,4.48238072,165.42,165.39,32.31434377]
[1730590813059,11.15294377,165.44,165.39,32.31434377]
[1730590813247,4.48205592,165.43,165.39,15.1151]
[1730590813451,4.48205592,165.42,165.39,15.1151]
[1730590813652,11.15294377,165.44,165.39,15.1151]
[1730590813964,4.48203671,165.43,165.39,15.1151]
[1730590814164,4.48203671,165.42,165.39,15.1151]
[1730590814375,11.15294377,165.44,165.39,15.1151]
[1730590814550,4.48176223,165.43,165.39,15.1151]
[1730590814749,4.48176223,165.42,165.39,15.1151]
[1730590814961,11.15294377,165.44,165.39,21.1614]
[1730590815159,4.4818127,165.43,165.39,32.31434377]
[1730590815470,4.48163114,165.42,165.39,32.31434377]
[1730590815671,11.15294377,165.44,165.39,32.31434377]
[1730590815853,4.48358611,165.43,165.39,32.31434377]
[1730590816054,4.48358611,165.42,165.39,32.31434377]
[1730590816266,11.15294377,165.44,165.39,32.31434377]
[1730590816454,4.48399432,165.43,165.39,32.31434377]
[1730590816655,4.48399432,165.42,165.39,32.31434377]
[1730590816854,11.15294377,165.44,165.39,32.31434377]
[1730590817157,4.48450333,165.43,165.39,32.31434377]
[1730590817358,4.48450333,165.42,165.39,32.31434377]
[1730590817565,11.15294377,165.44,165.39,32.31434377]
[1730590817869,4.48443761,165.43,165.39,32.31434377]
[1730590818070,4.48443761,165.42,165.39,32.31434377]
[1730590818271,11.15294377,165.44,165.39,32.31434377]
[1730590818569,4.48444674,165.43,165.39,32.31434377]
[1730590818769,11.15294377,165.45,165.39,32.31434377]
[1730590818973,4.48481071,165.44,165.39,32.31434377]
[1730590819170,4.48481071,165.43,165.39,32.31434377]
[1730590819363,17.19644377,165.47,165.41,11.15294377]
[1730590819557,4.48506622,165.46,165.42,11.15294377]
[1730590819759,4.48506622,165.45,165.42,17.19784377]
[1730590819964,4.48506622,165.44,165.42,17.19784377]
[1730590820163,17.19644377,165.47,165.42,6.0449]
[1730590820357,4.48584831,165.46,165.42,6.0449]
[1730590820558,4.48584831,165.45,165.42,6.0449]
[1730590820774,4.48584831,165.44,165.42,6.0449]
[1730590820968,17.19644377,165.47,165.42,6.0449]
[1730590821171,4.48587954,165.46,165.42,6.0449]
[1730590821372,4.48587954,165.45,165.43,11.15294377]
[1730590821561,20.0,165.48,165.43,11.15294377]
[1730590821761,4.48665883,165.47,165.43,11.15294377]
[1730590821960,4.48665883,165.46,165.43,11.15294377]
[1730590822173,11.15294377,165.49,165.43,11.15294377]
[1730590822473,15.64043494,165.48,165.43,11.15294377]
[1730590822659,4.48749117,165.47,165.43,11.15294377]
[1730590822854,4.48749117,165.46,165.43,11.15294377]
[1730590823059,11.15294377,165.49,165.43,11.15294377]
[1730590823261,4.48830849,165.48,165.43,11.15294377]
[1730590823463,4.48830849,165.47,165.44,21.1556]
[1730590823670,11.15294377,165.49,165.44,21.1556]
[1730590823868,4.48826308,165.48,165.44,21.1556]
[1730590824074,4.48826308,165.47,165.44,21.1556]
[1730590824397,11.15294377,165.49,165.44,21.1556]
[1730590824579,4.48885543,165.48,165.44,21.1556]
[1730590824780,4.48885543,165.47,165.44,21.1556]
[1730590824957,11.15294377,165.49,165.44,21.1556]
[1730590824958,4.48885543,165.46,165.44,21.1556]
[1730590825275,11.15294377,165.49,165.44,21.1556]
[1730590825576,4.48947728,165.48,165.44,21.1556]
[1730590825774,4.48947728,165.47,165.44,21.1556]
[1730590825958,11.15294377,165.49,165.44,32.30854377]
[1730590826160,4.4895697,165.48,165.44,32.30854377]
[1730590826369,4.4895697,165.47,165.44,32.30854377]
[1730590826560,4.4895697,165.46,165.44,32.30854377]
[1730590826761,11.15294377,165.49,165.44,32.30854377]
[1730590826961,4.49014729,165.48,165.44,32.30854377]
[1730590827163,4.49014729,165.47,165.44,32.30854377]
[1730590827371,11.15294377,165.49,165.44,32.30854377]
[1730590827577,4.49075956,165.48,165.44,32.30854377]
[1730590827777,4.49075956,165.47,165.44,32.30854377]
[1730590827973,11.15294377,165.49,165.44,32.30854377]
[1730590828155,4.49083788,165.48,165.44,32.30854377]
[1730590828555,4.49083788,165.47,165.44,32.30854377]
[1730590829560,4.49083788,165.46,165.44,32.30854377]
[1730590829983,17.19524377,165.5,165.44,32.30854377]
[1730590831472,11.15294377,165.49,165.44,32.30854377]
[1730590832463,4.4931422,165.48,165.44,32.30854377]
[1730590834074,11.15294377,165.49,165.44,32.30854377]
[1730590835088,11.15294377,165.49,165.44,21.1556]
[1730590835590,17.19564377,165.49,165.44,21.1556]
[1730590836291,11.15294377,165.48,165.44,21.1556]
[1730590837786,4.49309426,165.47,165.44,15.1112]
[1730590837980,4.49309426,165.46,165.44,15.1112]
[1730590838288,4.49309426,165.45,165.44,15.1112]
[1730590839898,4.49309426,165.45,165.43,11.15294377]
[1730590840204,11.15294377,165.48,165.43,11.15294377]
[1730590840375,8.08669305,165.47,165.43,11.15294377]
[1730590840574,8.08669305,165.46,165.43,11.15294377]
[1730590840891,4.49343588,165.45,165.43,11.15294377]
[1730590841087,11.15294377,165.48,165.44,6.0444]
[1730590841390,8.08656365,165.47,165.44,6.0444]
[1730590841578,8.08656365,165.46,165.44,6.0444]
[1730590841777,4.49338061,165.45,165.44,6.0444]
[1730590841986,4.49304254,165.45,165.44,6.0444]
[1730590846694,4.49236364,165.45,165.44,6.0444]
[1730590853000,4.49236364,165.45,165.43,32.30934377]
[1730590853180,4.49236364,165.44,165.43,32.30934377]
[1730590853373,11.15294377,165.47,165.41,17.19834377]
[1730590853579,11.15294377,165.45,165.41,6.0454]
[1730590853772,8.08435786,165.44,165.41,6.0454]
[1730590853977,8.08435786,165.43,165.41,6.0454]
[1730590854271,4.49193141,165.42,165.41,6.0454]
[1730590854492,4.49193141,165.42,165.4,11.15294377]
[1730590854696,11.15294377,165.45,165.4,11.15294377]
[1730590854888,8.08341081,165.44,165.4,11.15294377]
[1730590855087,8.08341081,165.43,165.4,11.15294377]
[1730590855294,4.49126041,165.42,165.4,11.15294377]
[1730590855600,11.15294377,165.45,165.4,11.15294377]
[1730590855788,8.08352479,165.44,165.4,11.15294377]
[1730590855989,8.08352479,165.43,165.4,11.15294377]
[1730590856292,4.49118526,165.42,165.4,11.15294377]
[1730590856495,17.19724377,165.45,165.4,11.15294377]
[1730590856695,8.08376196,165.44,165.4,11.15294377]
[1730590856996,8.08376196,165.43,165.39,11.15294377]
[1730590857174,11.15294377,165.44,165.39,11.15294377]
[1730590857377,8.08325136,165.42,165.39,11.15294377]
[1730590857690,4.49081602,165.41,165.39,11.15294377]
[1730590857885,17.19764377,165.44,165.39,11.15294377]
[1730590858084,8.0832788,165.43,165.39,11.15294377]
[1730590858279,8.0832788,165.42,165.39,11.15294377]
[1730590858597,4.49075172,165.41,165.39,11.15294377]
[1730590858780,17.19764377,165.44,165.38,11.15294377]